[Event "Late-Titled-Tuesday-Blitz-September-26-2023"]
[Site "Chess.com"]
[Date "2023.09.26"]
[Round "8"]
[White "Smiechu"]
[Black "djano"]
[Result "1-0"]
[WhiteElo "2549"]
[BlackElo "2641"]
[TimeControl "180+1"]
[EndTime "15:24:54 PDT"]
[Termination "Smiechu won by resignation"]

1. e4 {[%clk 0:03:00.9]} 1... c5 {[%clk 0:02:59.9]} 2. Nf3 {[%clk 0:03:00]} 2...
Nc6 {[%clk 0:02:57.9]} 3. d4 {[%clk 0:03:00.5]} 3... cxd4 {[%clk 0:02:58.8]} 4.
Nxd4 {[%clk 0:03:01]} 4... g6 {[%clk 0:02:59.4]} 5. Nc3 {[%clk 0:03:01.1]} 5...
Bg7 {[%clk 0:02:58.7]} 6. Be3 {[%clk 0:03:01.7]} 6... Nf6 {[%clk 0:02:59]} 7.
Bc4 {[%clk 0:03:00.8]} 7... O-O {[%clk 0:02:59.3]} 8. Bb3 {[%clk 0:03:00.3]}
8... Re8 {[%clk 0:02:59.8]} 9. O-O {[%clk 0:02:59.3]} 9... d6 {[%clk 0:03:00]}
10. h3 {[%clk 0:02:58]} 10... Na5 {[%clk 0:02:59.6]} 11. Qe2 {[%clk 0:02:55.9]}
11... b6 {[%clk 0:02:58.2]} 12. Rad1 {[%clk 0:02:52.6]} 12... Nxb3 {[%clk
0:02:53.3]} 13. axb3 {[%clk 0:02:51.9]} 13... Qc7 {[%clk 0:02:48]} 14. Nd5
{[%clk 0:02:40.5]} 14... Nxd5 {[%clk 0:02:44.4]} 15. exd5 {[%clk 0:02:41.4]}
15... Bb7 {[%clk 0:02:39.6]} 16. c4 {[%clk 0:02:40.9]} 16... e6 {[%clk
0:02:36.1]} 17. Nb5 {[%clk 0:02:36.7]} 17... Qd7 {[%clk 0:02:28.6]} 18. dxe6
{[%clk 0:02:25.1]} 18... Rxe6 {[%clk 0:02:29.5]} 19. Qd2 {[%clk 0:02:19.7]}
19... Qc6 {[%clk 0:01:56.5]} 20. f3 {[%clk 0:02:19.3]} 20... Rae8 {[%clk
0:01:47.4]} 21. Nd4 {[%clk 0:02:12.7]} 21... Bxd4 {[%clk 0:01:26]} 22. Bxd4
{[%clk 0:02:12.2]} 22... f6 {[%clk 0:01:17.5]} 23. Rde1 {[%clk 0:02:10.3]} 23...
d5 {[%clk 0:01:17.2]} 24. Rxe6 {[%clk 0:01:59.1]} 24... Qxe6 {[%clk 0:01:18.1]}
25. Bf2 {[%clk 0:01:55.3]} 25... dxc4 {[%clk 0:01:12.8]} 26. Re1 {[%clk
0:01:53.9]} 26... Qf7 {[%clk 0:01:12.2]} 27. Rxe8+ {[%clk 0:01:52.9]} 27... Qxe8
{[%clk 0:01:13.1]} 28. bxc4 {[%clk 0:01:53.1]} 28... Qe6 {[%clk 0:00:59.9]} 29.
b4 {[%clk 0:01:47.4]} 29... Kf7 {[%clk 0:00:50.3]} 30. c5 {[%clk 0:01:47.2]}
30... bxc5 {[%clk 0:00:48.2]} 31. bxc5 {[%clk 0:01:48.1]} 31... Qd5 {[%clk
0:00:48.2]} 32. Qa5 {[%clk 0:01:40.8]} 32... a6 {[%clk 0:00:38.5]} 33. Qc7+
{[%clk 0:01:37.6]} 33... Kg8 {[%clk 0:00:38]} 34. Qe7 {[%clk 0:01:17.9]} 34...
Qf7 {[%clk 0:00:32.1]} 35. Qd8+ {[%clk 0:01:16.1]} 35... Kg7 {[%clk 0:00:32.7]}
36. Bd4 {[%clk 0:01:07.9]} 36... g5 {[%clk 0:00:33.2]} 37. Qd6 {[%clk
0:01:03.3]} 37... Kg6 {[%clk 0:00:26.8]} 38. c6 {[%clk 0:01:02.3]} 38... Bc8
{[%clk 0:00:26.6]} 39. Qd8 {[%clk 0:00:51.6]} 39... Qe6 {[%clk 0:00:25.8]} 40.
c7 {[%clk 0:00:46.1]} 40... Qd7 {[%clk 0:00:22.3]} 41. Qxf6+ {[%clk 0:00:45]}
41... Kh5 {[%clk 0:00:21]} 42. Be3 {[%clk 0:00:43]} 42... Qd5 {[%clk 0:00:11.3]}
43. g4+ {[%clk 0:00:39]} 43... Kh4 {[%clk 0:00:10.8]} 44. Bf2+ {[%clk
0:00:38.3]} 1-0

[Event "Late-Titled-Tuesday-Blitz-September-26-2023"]
[Site "Chess.com"]
[Date "2023.09.26"]
[Round "8"]
[White "dropstoneDP"]
[Black "Zhigalko_Sergei"]
[Result "1-0"]
[WhiteElo "3116"]
[BlackElo "2917"]
[TimeControl "180+1"]
[EndTime "15:24:55 PDT"]
[Termination "dropstoneDP won on time"]

1. e4 {[%clk 0:03:00.9]} 1... c5 {[%clk 0:02:59.9]} 2. Nf3 {[%clk 0:03:01.5]}
2... Nc6 {[%clk 0:02:59.7]} 3. Bb5 {[%clk 0:03:02.1]} 3... Nf6 {[%clk
0:02:59.5]} 4. Nc3 {[%clk 0:03:02.7]} 4... Qc7 {[%clk 0:02:58.1]} 5. d3 {[%clk
0:03:02.4]} 5... d6 {[%clk 0:02:54.6]} 6. O-O {[%clk 0:02:59.1]} 6... e6 {[%clk
0:02:51.2]} 7. Bf4 {[%clk 0:02:52.5]} 7... Bd7 {[%clk 0:02:43.3]} 8. Re1 {[%clk
0:02:51.1]} 8... Nh5 {[%clk 0:02:38.5]} 9. Bg5 {[%clk 0:02:48.6]} 9... h6 {[%clk
0:02:35.8]} 10. Be3 {[%clk 0:02:17.9]} 10... Be7 {[%clk 0:02:27.3]} 11. d4
{[%clk 0:02:16.4]} 11... cxd4 {[%clk 0:02:24.8]} 12. Nxd4 {[%clk 0:02:17.3]}
12... Nf6 {[%clk 0:02:23.4]} 13. Be2 {[%clk 0:02:11.9]} 13... a6 {[%clk
0:02:21.1]} 14. Qd2 {[%clk 0:02:09.4]} 14... O-O {[%clk 0:02:18.5]} 15. Rad1
{[%clk 0:02:08.6]} 15... b5 {[%clk 0:02:17.3]} 16. a3 {[%clk 0:01:57.7]} 16...
Ne5 {[%clk 0:02:07.8]} 17. f3 {[%clk 0:01:46.8]} 17... Rfc8 {[%clk 0:02:06]} 18.
Kh1 {[%clk 0:01:42.5]} 18... Rab8 {[%clk 0:02:03.6]} 19. f4 {[%clk 0:01:31.5]}
19... Nc4 {[%clk 0:01:56.1]} 20. Bxc4 {[%clk 0:01:31.3]} 20... Qxc4 {[%clk
0:01:54.4]} 21. e5 {[%clk 0:01:25.4]} 21... dxe5 {[%clk 0:01:17.6]} 22. fxe5
{[%clk 0:01:24.7]} 22... Nd5 {[%clk 0:00:39.2]} 23. Nf5 {[%clk 0:01:12.2]} 23...
Bf8 {[%clk 0:00:33.6]} 24. Nxd5 {[%clk 0:01:05]} 24... exd5 {[%clk 0:00:27.1]}
25. Nd4 {[%clk 0:00:52.7]} 25... a5 {[%clk 0:00:27.3]} 26. Rf1 {[%clk
0:00:51.2]} 26... Bg4 {[%clk 0:00:18.2]} 27. Rde1 {[%clk 0:00:49]} 27... b4
{[%clk 0:00:18.6]} 28. axb4 {[%clk 0:00:46.8]} 28... Qxb4 {[%clk 0:00:11.3]} 29.
Qf2 {[%clk 0:00:43.8]} 29... Rb7 {[%clk 0:00:11.5]} 30. h3 {[%clk 0:00:43]}
30... Be6 {[%clk 0:00:09.2]} 31. Qg3 {[%clk 0:00:41.7]} 31... Qxb2 {[%clk
0:00:07.4]} 32. Nxe6 {[%clk 0:00:34]} 32... fxe6 {[%clk 0:00:08.3]} 33. Qg6
{[%clk 0:00:34.4]} 33... Qxc2 {[%clk 0:00:07.4]} 34. Qxe6+ {[%clk 0:00:24.4]}
34... Kh7 {[%clk 0:00:07]} 35. Rc1 {[%clk 0:00:24.3]} 35... Qxc1 {[%clk
0:00:01.2]} 36. Bxc1 {[%clk 0:00:23.9]} 1-0

[Event "Late-Titled-Tuesday-Blitz-September-26-2023"]
[Site "Chess.com"]
[Date "2023.09.26"]
[Round "8"]
[White "Alexei_Gubajdullin"]
[Black "Oleksandr_Bortnyk"]
[Result "0-1"]
[WhiteElo "2729"]
[BlackElo "3017"]
[TimeControl "180+1"]
[EndTime "15:25:00 PDT"]
[Termination "Oleksandr_Bortnyk won by resignation"]

1. d4 {[%clk 0:02:59.8]} 1... d6 {[%clk 0:03:00.1]} 2. Nf3 {[%clk 0:02:59.1]}
2... Nf6 {[%clk 0:03:00.5]} 3. Bf4 {[%clk 0:02:59]} 3... b6 {[%clk 0:02:58.4]}
4. h3 {[%clk 0:02:57.3]} 4... Bb7 {[%clk 0:02:59.3]} 5. e3 {[%clk 0:02:57.4]}
5... Nbd7 {[%clk 0:02:59.7]} 6. Be2 {[%clk 0:02:57.6]} 6... e6 {[%clk
0:03:00.4]} 7. O-O {[%clk 0:02:57.4]} 7... Be7 {[%clk 0:03:01]} 8. a4 {[%clk
0:02:57.3]} 8... a5 {[%clk 0:02:59.3]} 9. Nc3 {[%clk 0:02:57]} 9... h6 {[%clk
0:03:00]} 10. Nb5 {[%clk 0:02:56.8]} 10... g5 {[%clk 0:03:00.3]} 11. Bh2 {[%clk
0:02:55.3]} 11... g4 {[%clk 0:03:01]} 12. hxg4 {[%clk 0:02:55.3]} 12... Nxg4
{[%clk 0:03:01.9]} 13. Bf4 {[%clk 0:02:50.1]} 13... Rg8 {[%clk 0:03:01.3]} 14.
c4 {[%clk 0:02:16.9]} 14... e5 {[%clk 0:02:59]} 15. Bh2 {[%clk 0:02:08.8]} 15...
Nxh2 {[%clk 0:02:56.9]} 16. Kxh2 {[%clk 0:02:08.8]} 16... Nf6 {[%clk 0:02:54.3]}
17. d5 {[%clk 0:01:55]} 17... Ng4+ {[%clk 0:02:52.3]} 18. Kg1 {[%clk 0:01:54.8]}
18... f5 {[%clk 0:02:33.8]} 19. Nh2 {[%clk 0:01:53.3]} 19... h5 {[%clk
0:02:26.7]} 20. e4 {[%clk 0:01:50.3]} 20... Bc8 {[%clk 0:02:26.5]} 21. exf5
{[%clk 0:01:45.8]} 21... Bxf5 {[%clk 0:02:27.4]} 22. Nxg4 {[%clk 0:01:45.8]}
22... hxg4 {[%clk 0:02:26.7]} 23. Bd3 {[%clk 0:01:42.9]} 23... e4 {[%clk
0:00:54.5]} 24. Nd4 {[%clk 0:01:42.1]} 24... Qd7 {[%clk 0:00:51.4]} 25. Be2
{[%clk 0:01:12.9]} 25... Bf6 {[%clk 0:00:48.6]} 26. c5 {[%clk 0:01:10.1]} 26...
Qh7 {[%clk 0:00:41.6]} 27. Bb5+ {[%clk 0:00:56.8]} 27... Kf7 {[%clk 0:00:38.6]}
28. Re1 {[%clk 0:00:19.8]} 28... Rh8 {[%clk 0:00:29.8]} 29. Kf1 {[%clk
0:00:19.5]} 29... bxc5 {[%clk 0:00:30.3]} 30. Ne6 {[%clk 0:00:18]} 30... Qh1+
{[%clk 0:00:27]} 31. Ke2 {[%clk 0:00:18]} 31... Qxg2 {[%clk 0:00:27.9]} 32. Ra3
{[%clk 0:00:17.8]} 32... g3 {[%clk 0:00:19.8]} 33. Rxg3 {[%clk 0:00:16.7]} 33...
Bg4+ {[%clk 0:00:20.4]} 34. Kd2 {[%clk 0:00:10.9]} 34... Qxf2+ {[%clk
0:00:19.7]} 35. Be2 {[%clk 0:00:09.1]} 35... Bxe2 {[%clk 0:00:19.8]} 36. Qxe2
{[%clk 0:00:09]} 36... Qxg3 {[%clk 0:00:20.2]} 37. Qxe4 {[%clk 0:00:07.9]} 37...
Rh2+ {[%clk 0:00:19.3]} 38. Kd1 {[%clk 0:00:08.1]} 38... Qb3+ {[%clk 0:00:19.2]}
0-1

[Event "Late-Titled-Tuesday-Blitz-September-26-2023"]
[Site "Chess.com"]
[Date "2023.09.26"]
[Round "8"]
[White "dadice10"]
[Black "Rainbow2014"]
[Result "0-1"]
[WhiteElo "2238"]
[BlackElo "2417"]
[TimeControl "180+1"]
[EndTime "15:25:02 PDT"]
[Termination "Rainbow2014 won on time"]

1. e4 {[%clk 0:03:00.9]} 1... c5 {[%clk 0:02:58.2]} 2. Nc3 {[%clk 0:02:59.1]}
2... d6 {[%clk 0:02:57.5]} 3. f4 {[%clk 0:02:57.8]} 3... a6 {[%clk 0:02:56.1]}
4. a4 {[%clk 0:02:52.8]} 4... Nf6 {[%clk 0:02:55.2]} 5. Nf3 {[%clk 0:02:52.7]}
5... Bg4 {[%clk 0:02:54.7]} 6. Bc4 {[%clk 0:02:51.7]} 6... e6 {[%clk 0:02:54.1]}
7. O-O {[%clk 0:02:49.9]} 7... Nc6 {[%clk 0:02:54.6]} 8. d3 {[%clk 0:02:46]}
8... Nd4 {[%clk 0:02:54.7]} 9. Be3 {[%clk 0:02:39.7]} 9... Nxf3+ {[%clk
0:02:54.8]} 10. gxf3 {[%clk 0:02:38.2]} 10... Bh3 {[%clk 0:02:55.5]} 11. Rf2
{[%clk 0:02:37]} 11... Be7 {[%clk 0:02:56]} 12. Kh1 {[%clk 0:02:24.6]} 12... Nh5
{[%clk 0:02:54.4]} 13. Qg1 {[%clk 0:02:06.3]} 13... Bh4 {[%clk 0:02:30.4]} 14.
Rd2 {[%clk 0:02:04.1]} 14... Qf6 {[%clk 0:02:30.6]} 15. e5 {[%clk 0:02:00.1]}
15... dxe5 {[%clk 0:02:29.3]} 16. Ne4 {[%clk 0:01:59.5]} 16... Qg6 {[%clk
0:02:19.3]} 17. Bxc5 {[%clk 0:01:55.5]} 17... Nxf4 {[%clk 0:02:08.4]} 18. Qxg6
{[%clk 0:01:53.3]} 18... hxg6 {[%clk 0:02:05.4]} 19. Nd6+ {[%clk 0:01:49]} 19...
Kf8 {[%clk 0:01:47.1]} 20. Nxb7+ {[%clk 0:01:09.7]} 20... Be7 {[%clk 0:01:46.2]}
21. Bxe7+ {[%clk 0:00:59.2]} 21... Kxe7 {[%clk 0:01:47.1]} 22. Na5 {[%clk
0:00:58.3]} 22... g5 {[%clk 0:01:43.8]} 23. Re1 {[%clk 0:00:55.6]} 23... g4
{[%clk 0:01:39.6]} 24. Nc6+ {[%clk 0:00:53.1]} 24... Kf6 {[%clk 0:01:30.4]} 25.
Nxe5 {[%clk 0:00:54]} 25... gxf3 {[%clk 0:01:30.7]} 26. Nxf3 {[%clk 0:00:52.3]}
26... Rh5 {[%clk 0:01:17.4]} 27. Re4 {[%clk 0:00:50.9]} 27... g5 {[%clk
0:01:15.9]} 28. Rf2 {[%clk 0:00:41.5]} 28... Bf5 {[%clk 0:01:13.1]} 29. Rd4
{[%clk 0:00:31.2]} 29... Nh3 {[%clk 0:01:07.9]} 30. Rf1 {[%clk 0:00:29.8]} 30...
Rah8 {[%clk 0:01:05.5]} 31. Rd6 {[%clk 0:00:20.3]} 31... g4 {[%clk 0:01:05.8]}
32. Nd4 {[%clk 0:00:18]} 32... Ng5 {[%clk 0:01:02.1]} 33. Nxf5 {[%clk
0:00:16.4]} 33... Rxh2+ {[%clk 0:01:01.2]} 34. Kg1 {[%clk 0:00:16.4]} 34... Rh1+
{[%clk 0:00:57.9]} 35. Kf2 {[%clk 0:00:15.9]} 35... R8h2+ {[%clk 0:00:50.7]} 36.
Kg3 {[%clk 0:00:12.7]} 36... Rxf1 {[%clk 0:00:46.3]} 37. Kxh2 {[%clk 0:00:11.7]}
37... Kxf5 {[%clk 0:00:44.7]} 38. Rxa6 {[%clk 0:00:10.6]} 38... Nf3+ {[%clk
0:00:35.2]} 39. Kg2 {[%clk 0:00:08.5]} 39... Rg1+ {[%clk 0:00:31.9]} 40. Kf2
{[%clk 0:00:08.4]} 40... Rc1 {[%clk 0:00:31.9]} 41. Bb3 {[%clk 0:00:07.1]} 41...
Kf4 {[%clk 0:00:31.5]} 42. Ra7 {[%clk 0:00:03.1]} 42... g3+ {[%clk 0:00:31.9]}
43. Kg2 {[%clk 0:00:01.5]} 43... Nh4+ {[%clk 0:00:26.9]} 0-1

[Event "Late-Titled-Tuesday-Blitz-September-26-2023"]
[Site "Chess.com"]
[Date "2023.09.26"]
[Round "8"]
[White "QuintilianoR"]
[Black "Fan_Of_Chucky"]
[Result "1-0"]
[WhiteElo "2669"]
[BlackElo "2516"]
[TimeControl "180+1"]
[EndTime "15:25:09 PDT"]
[Termination "QuintilianoR won on time"]

1. e4 {[%clk 0:03:00.9]} 1... c5 {[%clk 0:02:59.5]} 2. Nf3 {[%clk 0:03:00.1]}
2... a6 {[%clk 0:03:00.2]} 3. c4 {[%clk 0:02:58.1]} 3... e6 {[%clk 0:03:00]} 4.
d4 {[%clk 0:02:57.5]} 4... cxd4 {[%clk 0:03:00.9]} 5. Nxd4 {[%clk 0:02:57.8]}
5... Nf6 {[%clk 0:02:59.9]} 6. Nc3 {[%clk 0:02:57.9]} 6... Qc7 {[%clk
0:03:00.4]} 7. a3 {[%clk 0:02:57.4]} 7... b6 {[%clk 0:02:59.9]} 8. Be2 {[%clk
0:02:56]} 8... Bb7 {[%clk 0:03:00.5]} 9. f3 {[%clk 0:02:56.3]} 9... Be7 {[%clk
0:03:00.3]} 10. Be3 {[%clk 0:02:56.3]} 10... d6 {[%clk 0:03:00.8]} 11. O-O
{[%clk 0:02:55.5]} 11... O-O {[%clk 0:03:01.5]} 12. Rc1 {[%clk 0:02:55.5]} 12...
Nc6 {[%clk 0:03:02.2]} 13. Nd5 {[%clk 0:02:45.9]} 13... Qd8 {[%clk 0:02:47.3]}
14. Nxc6 {[%clk 0:02:44.4]} 14... Bxc6 {[%clk 0:02:45]} 15. Bxb6 {[%clk
0:02:43.9]} 15... Qd7 {[%clk 0:02:40.7]} 16. Nxe7+ {[%clk 0:02:43.4]} 16... Qxe7
{[%clk 0:02:41.6]} 17. Bd4 {[%clk 0:02:42.1]} 17... Rfc8 {[%clk 0:02:30]} 18. b4
{[%clk 0:02:41.2]} 18... Bb7 {[%clk 0:02:23.8]} 19. Qb3 {[%clk 0:02:27.7]} 19...
d5 {[%clk 0:02:11.7]} 20. exd5 {[%clk 0:01:45.4]} 20... exd5 {[%clk 0:02:12.6]}
21. Rfe1 {[%clk 0:01:44.1]} 21... dxc4 {[%clk 0:01:33.6]} 22. Bxc4 {[%clk
0:01:43.5]} 22... Qd6 {[%clk 0:01:33.2]} 23. Bxf7+ {[%clk 0:01:39.9]} 23... Kh8
{[%clk 0:01:33.8]} 24. Bc5 {[%clk 0:01:29.3]} 24... Qd2 {[%clk 0:01:18.1]} 25.
Rcd1 {[%clk 0:01:26.8]} 25... Qg5 {[%clk 0:01:13.1]} 26. Bc4 {[%clk 0:01:17.7]}
26... a5 {[%clk 0:00:56.3]} 27. Bf1 {[%clk 0:01:07.4]} 27... axb4 {[%clk
0:00:46.5]} 28. axb4 {[%clk 0:01:08.3]} 28... Bd5 {[%clk 0:00:37.3]} 29. Qe3
{[%clk 0:01:07.6]} 29... Qh5 {[%clk 0:00:20.2]} 30. Qe5 {[%clk 0:01:04.9]} 30...
Qf7 {[%clk 0:00:09.5]} 31. Qf4 {[%clk 0:01:02.5]} 31... Qg6 {[%clk 0:00:06.6]}
32. Re5 {[%clk 0:00:59.6]} 32... Bc6 {[%clk 0:00:04.8]} 33. Bd3 {[%clk 0:00:55]}
33... Qf7 {[%clk 0:00:03.7]} 34. Re7 {[%clk 0:00:53.3]} 34... Qh5 {[%clk
0:00:04.2]} 35. Bd4 {[%clk 0:00:48.6]} 35... Rf8 {[%clk 0:00:03]} 36. Qg3 {[%clk
0:00:44.5]} 36... Qh6 {[%clk 0:00:02.8]} 37. Be3 {[%clk 0:00:39.1]} 37... Qh5
{[%clk 0:00:02.3]} 38. Re5 {[%clk 0:00:39.1]} 38... Qf7 {[%clk 0:00:01.9]} 39.
Bc5 {[%clk 0:00:38]} 39... Rfe8 {[%clk 0:00:01.8]} 40. Rxe8+ {[%clk 0:00:37.5]}
40... Rxe8 {[%clk 0:00:02.7]} 41. Re1 {[%clk 0:00:36.6]} 41... Rxe1+ {[%clk
0:00:02.4]} 42. Qxe1 {[%clk 0:00:36.4]} 42... Qd5 {[%clk 0:00:03.3]} 43. Bf1
{[%clk 0:00:33.7]} 43... h5 {[%clk 0:00:03]} 44. Qc3 {[%clk 0:00:30.2]} 44...
Nd7 {[%clk 0:00:03.1]} 45. Bd4 {[%clk 0:00:30.5]} 45... Qf7 {[%clk 0:00:01.7]}
46. Qxc6 {[%clk 0:00:30.3]} 1-0

[Event "Late-Titled-Tuesday-Blitz-September-26-2023"]
[Site "Chess.com"]
[Date "2023.09.26"]
[Round "8"]
[White "jaskol95"]
[Black "nihalsarin"]
[Result "0-1"]
[WhiteElo "2629"]
[BlackElo "3067"]
[TimeControl "180+1"]
[EndTime "15:25:14 PDT"]
[Termination "nihalsarin won by checkmate"]

1. d4 {[%clk 0:03:00.9]} 1... a6 {[%clk 0:03:00.9]} 2. e4 {[%clk 0:02:59.4]}
2... c6 {[%clk 0:03:01.1]} 3. Nc3 {[%clk 0:02:59.9]} 3... d5 {[%clk 0:03:01.7]}
4. exd5 {[%clk 0:02:59.5]} 4... cxd5 {[%clk 0:03:01.8]} 5. Nf3 {[%clk
0:03:00.2]} 5... Nc6 {[%clk 0:03:02.5]} 6. Bf4 {[%clk 0:02:59.6]} 6... Bg4
{[%clk 0:03:03.1]} 7. Be2 {[%clk 0:02:59.5]} 7... e6 {[%clk 0:03:03.2]} 8. h3
{[%clk 0:02:59.3]} 8... Bh5 {[%clk 0:03:03.7]} 9. O-O {[%clk 0:02:59.9]} 9...
Bd6 {[%clk 0:03:04.3]} 10. Ne5 {[%clk 0:02:47.3]} 10... Bxe2 {[%clk 0:03:03.7]}
11. Nxe2 {[%clk 0:02:48.2]} 11... Nge7 {[%clk 0:03:03.6]} 12. c3 {[%clk
0:02:46.7]} 12... O-O {[%clk 0:03:04.3]} 13. Re1 {[%clk 0:02:45.9]} 13... Rc8
{[%clk 0:03:03.9]} 14. Nxc6 {[%clk 0:02:44.2]} 14... Rxc6 {[%clk 0:03:02.6]} 15.
Qd2 {[%clk 0:02:42.6]} 15... b5 {[%clk 0:03:01.8]} 16. a4 {[%clk 0:02:36.5]}
16... Nf5 {[%clk 0:02:54.7]} 17. axb5 {[%clk 0:02:31.3]} 17... axb5 {[%clk
0:02:55.6]} 18. Ra7 {[%clk 0:02:17.4]} 18... b4 {[%clk 0:02:49.7]} 19. cxb4
{[%clk 0:02:06.5]} 19... Qb6 {[%clk 0:02:38.4]} 20. Bxd6 {[%clk 0:02:04.5]}
20... Nxd6 {[%clk 0:02:38.7]} 21. Rea1 {[%clk 0:01:56.6]} 21... Ne4 {[%clk
0:02:27.1]} 22. Qf4 {[%clk 0:01:53.2]} 22... Qxb4 {[%clk 0:02:22.9]} 23. R1a2
{[%clk 0:01:06.7]} 23... Qe1+ {[%clk 0:02:13.4]} 24. Kh2 {[%clk 0:01:06.9]}
24... g5 {[%clk 0:01:57.3]} 25. Qe3 {[%clk 0:00:59.7]} 25... Qxf2 {[%clk
0:01:55]} 26. Qxf2 {[%clk 0:00:57.8]} 26... Nxf2 {[%clk 0:01:55.9]} 27. b4
{[%clk 0:00:51.6]} 27... Rb6 {[%clk 0:01:53.3]} 28. Rb2 {[%clk 0:00:48.5]} 28...
Nd3 {[%clk 0:01:48.6]} 29. Rb3 {[%clk 0:00:48.2]} 29... Nxb4 {[%clk 0:01:49.3]}
30. Ng3 {[%clk 0:00:45]} 30... Kg7 {[%clk 0:01:41.9]} 31. h4 {[%clk 0:00:36.6]}
31... gxh4 {[%clk 0:01:40.7]} 32. Nh5+ {[%clk 0:00:37.1]} 32... Kg6 {[%clk
0:01:40.9]} 33. Nf4+ {[%clk 0:00:37.8]} 33... Kf5 {[%clk 0:01:35.9]} 34. Nd3
{[%clk 0:00:37]} 34... Nc6 {[%clk 0:01:36.5]} 35. Rxb6 {[%clk 0:00:26.2]} 35...
Nxa7 {[%clk 0:01:36.8]} 36. Kh3 {[%clk 0:00:25.5]} 36... Ke4 {[%clk 0:01:29.8]}
37. Nf2+ {[%clk 0:00:23.9]} 37... Kxd4 {[%clk 0:01:29.4]} 38. Kxh4 {[%clk
0:00:24]} 38... Rc8 {[%clk 0:01:29.7]} 39. Rb7 {[%clk 0:00:23.2]} 39... Rc2
{[%clk 0:01:15.1]} 40. Nh3 {[%clk 0:00:19.5]} 40... Nc6 {[%clk 0:01:13.3]} 41.
Rxf7 {[%clk 0:00:19.7]} 41... Rxg2 {[%clk 0:01:11.9]} 42. Rxh7 {[%clk
0:00:18.7]} 42... e5 {[%clk 0:01:10]} 43. Rh6 {[%clk 0:00:18.2]} 43... Nb4
{[%clk 0:01:09.1]} 44. Rb6 {[%clk 0:00:17.4]} 44... Nd3 {[%clk 0:01:09]} 45. Ng5
{[%clk 0:00:16.4]} 45... e4 {[%clk 0:01:08.4]} 46. Ne6+ {[%clk 0:00:16.7]} 46...
Ke5 {[%clk 0:01:08.7]} 47. Ng5 {[%clk 0:00:14.9]} 47... e3 {[%clk 0:00:55.4]}
48. Re6+ {[%clk 0:00:12.1]} 48... Kf5 {[%clk 0:00:56]} 49. Rxe3 {[%clk
0:00:10.3]} 49... Rg4+ {[%clk 0:00:56.8]} 50. Kh3 {[%clk 0:00:07.8]} 50... Nf4+
{[%clk 0:00:56]} 51. Kh2 {[%clk 0:00:08.5]} 51... d4 {[%clk 0:00:47.9]} 52. Ra3
{[%clk 0:00:04.2]} 52... Rxg5 {[%clk 0:00:46.6]} 53. Ra5+ {[%clk 0:00:04.6]}
53... Kg4 {[%clk 0:00:47.2]} 54. Ra4 {[%clk 0:00:04.6]} 54... d3 {[%clk
0:00:46.9]} 55. Rd4 {[%clk 0:00:04.4]} 55... Kf3 {[%clk 0:00:46.8]} 56. Kh1
{[%clk 0:00:03.2]} 56... Rh5+ {[%clk 0:00:46.4]} 57. Kg1 {[%clk 0:00:03.6]}
57... Ne2+ {[%clk 0:00:47.3]} 58. Kf1 {[%clk 0:00:03.9]} 58... Rh1# {[%clk
0:00:48.2]} 0-1

[Event "Late-Titled-Tuesday-Blitz-September-26-2023"]
[Site "Chess.com"]
[Date "2023.09.26"]
[Round "8"]
[White "bazar-wokzal"]
[Black "DefiantChair"]
[Result "1-0"]
[WhiteElo "2676"]
[BlackElo "2543"]
[TimeControl "180+1"]
[EndTime "15:25:14 PDT"]
[Termination "bazar-wokzal won by resignation"]

1. e4 {[%clk 0:03:00.9]} 1... c5 {[%clk 0:02:59.6]} 2. c3 {[%clk 0:03:00.9]}
2... Nf6 {[%clk 0:02:59.1]} 3. e5 {[%clk 0:03:01]} 3... Nd5 {[%clk 0:02:59.4]}
4. d4 {[%clk 0:03:01.9]} 4... cxd4 {[%clk 0:02:59.2]} 5. cxd4 {[%clk 0:03:02.8]}
5... Nc6 {[%clk 0:02:59.5]} 6. Nc3 {[%clk 0:03:02.7]} 6... Nxc3 {[%clk
0:02:59.5]} 7. bxc3 {[%clk 0:03:03.6]} 7... d5 {[%clk 0:02:59.8]} 8. Bd3 {[%clk
0:03:03.1]} 8... e6 {[%clk 0:02:48.7]} 9. Qg4 {[%clk 0:03:01.8]} 9... Bd7 {[%clk
0:02:47.1]} 10. Nf3 {[%clk 0:03:01.3]} 10... h6 {[%clk 0:02:45.3]} 11. O-O
{[%clk 0:03:00.6]} 11... a6 {[%clk 0:02:40.7]} 12. a4 {[%clk 0:02:59.6]} 12...
Qc7 {[%clk 0:02:29.2]} 13. Ba3 {[%clk 0:02:47.9]} 13... Na5 {[%clk 0:02:13.9]}
14. Bb4 {[%clk 0:02:38.6]} 14... Nc6 {[%clk 0:02:07.6]} 15. Bd6 {[%clk
0:02:36.3]} 15... Bxd6 {[%clk 0:02:06.6]} 16. Qxg7 {[%clk 0:02:32.7]} 16...
O-O-O {[%clk 0:01:47.9]} 17. exd6 {[%clk 0:02:32.8]} 17... Qxd6 {[%clk
0:01:46.7]} 18. Qxf7 {[%clk 0:02:33.1]} 18... h5 {[%clk 0:01:38.1]} 19. Nh4
{[%clk 0:01:40]} 19... Rdf8 {[%clk 0:01:03.7]} 20. Qg7 {[%clk 0:01:39]} 20...
Rhg8 {[%clk 0:00:57.5]} 21. Qh6 {[%clk 0:01:37.5]} 21... Qe7 {[%clk 0:00:39.8]}
22. Ng6 {[%clk 0:00:51.7]} 22... Qf6 {[%clk 0:00:39.5]} 23. f4 {[%clk
0:00:34.3]} 23... Kb8 {[%clk 0:00:17.8]} 24. Qxh5 {[%clk 0:00:27.8]} 24... Be8
{[%clk 0:00:17.5]} 25. f5 {[%clk 0:00:27.9]} 25... e5 {[%clk 0:00:18]} 26. dxe5
{[%clk 0:00:23.9]} 26... Nxe5 {[%clk 0:00:17.7]} 27. Qe2 {[%clk 0:00:23.9]}
27... Qb6+ {[%clk 0:00:17.3]} 28. Kh1 {[%clk 0:00:23.4]} 28... Nxg6 {[%clk
0:00:16.7]} 29. fxg6 {[%clk 0:00:23.3]} 29... Rxf1+ {[%clk 0:00:16.8]} 30. Rxf1
{[%clk 0:00:23.2]} 30... Qc7 {[%clk 0:00:15.5]} 31. Qg4 {[%clk 0:00:18.2]} 31...
Rh8 {[%clk 0:00:14.8]} 32. h3 {[%clk 0:00:16.1]} 32... Bd7 {[%clk 0:00:15.1]}
33. Bf5 {[%clk 0:00:15.8]} 33... Bxa4 {[%clk 0:00:10.2]} 34. Be6 {[%clk
0:00:14.1]} 34... Qg7 {[%clk 0:00:09]} 35. Rf7 {[%clk 0:00:13.1]} 35... Qxc3
{[%clk 0:00:09.1]} 36. g7 {[%clk 0:00:13]} 36... Rd8 {[%clk 0:00:04.4]} 37. g8=Q
{[%clk 0:00:08.7]} 37... Qa1+ {[%clk 0:00:04]} 38. Kh2 {[%clk 0:00:08.6]} 38...
Qe5+ {[%clk 0:00:03.7]} 39. Qg3 {[%clk 0:00:08.9]} 1-0